Cogmind - Beta 15 @@@ ROGUE MODE // 2025.05.10 @ 12:44:04 Player: amhuman Result: Self-destructed Performance ------------- Evolutions (2) 1000 Regions Visited (6) 1200 Robots Destroyed (67) 335 Value Destroyed (2175) 2175 Prototype IDs (3) 60 Alien Tech Used (0) 0 Bonus (0) 0 TOTAL SCORE: 4770 Bonus ------- None Cogmind --------- Core Integrity 400/550 Matter 132/300 Energy 275/275 System Corruption 0% Temperature Cool (0) Movement Treading (250) Ox1 Location -8/Materials Parts ------- > --- POWER (1) -------- Deuterium Engine > --- PROPULSION (4) --- Armored Treads Armored Treads Aluminum Leg Carbon-fiber Leg > --- UTILITY (4) ------ Heat Sink Large Storage Unit Heavy Armor Plating > --- WEAPON (2) ------- Ion Cannon Rocket Launcher > --- INVENTORY (15) --- High-capacity Matter Pod (200) Shock Rifle Heavy Particle Cannon Heavy Particle Cannon Plasma Cannon Plasma Cannon Plasma Cannon Minigun Minigun Minigun Assault Cannon Assault Cannon Flak Cannon Grenade Launcher Heavy Flail Peak State ------------ > --- POWER ------------ Deuterium Engine > --- PROPULSION ------- Armored Treads Armored Treads Aluminum Leg Carbon-fiber Leg > --- UTILITY ---------- Heat Sink Large Storage Unit Heavy Armor Plating > --- WEAPON ----------- Ion Cannon Rocket Launcher > --- INVENTORY -------- High-capacity Matter Pod Shock Rifle Heavy Particle Cannon Heavy Particle Cannon Plasma Cannon Plasma Cannon Plasma Cannon Minigun Minigun Minigun Assault Cannon Assault Cannon Flak Cannon Grenade Launcher Heavy Flail [Rating: 30] Favorites ----------- Power Ion Engine Engine Ion Engine Propulsion Improved Aluminum Leg Treads Light Treads Leg Improved Aluminum Leg Wheel Compact Wheel Utility Large Storage Unit Device Improved Heat Sink Storage Large Storage Unit Protection Light Armor Plating Weapon Advanced Beam Cannon Energy Gun Beam Rifle Energy Cannon Advanced Beam Cannon Ballistic Gun Light Assault Rifle Launcher Grenade Launcher Special Weapon Mining Laser Build | -11 -10 -9 -9 -9 -8 -8 ------- Run | Yrd Mat Mat Min Exi Min Mat Slots Evolved 4 | . . 2 . . . 2 Power . | . . . . . . . Propulsion 2 | . . 2 . . . . Utility 2 | . . . . . . 2 Weapon . | . . . . . . . Parts Attached 59 | 6 7 16 6 1 5 18 Power 5 | 1 1 2 . . . 1 Engine 5 | 1 1 2 . . . 1 Core . | . . . . . . . Reactor . | . . . . . . . Propulsion 25 | 2 2 8 2 1 3 7 Treads 7 | 2 1 1 . . . 3 Leg 16 | . . 6 2 1 3 4 Wheel 2 | . 1 1 . . . . Hover . | . . . . . . . Flight . | . . . . . . . Utility 12 | 1 2 2 2 . 1 4 Device 5 | . 1 . 2 . . 2 Storage 3 | 1 . 2 . . . . Processor . | . . . . . . . Hackware . | . . . . . . . Protection 4 | . 1 . . . 1 2 Artifact . | . . . . . . . Weapon 17 | 2 2 4 2 . 1 6 Energy Gun 3 | . 1 2 . . . . Energy Cannon 6 | . . 1 1 . . 4 Ballistic Gun 5 | 2 1 1 . . . 1 Ballistic Cannon . | . . . . . . . Launcher 2 | . . . . . 1 1 Special Weapon 1 | . . . 1 . . . Impact Weapon . | . . . . . . . Slashing Weapon . | . . . . . . . Piercing Weapon . | . . . . . . . Special Melee Weapon . | . . . . . . . Unidentified Prototypes 3 | . . 1 . . . 2 Parts Lost 29 | . 5 6 2 . 5 11 Power 4 | . 1 2 . . . 1 Propulsion 16 | . 1 3 2 . 4 6 Utility 5 | . 1 . . . 1 3 Weapon 4 | . 2 1 . . . 1 Highest Loss Streak 6 | . 5 2 1 . 4 6 To Critical Strikes . | . . . . . . . Average Backups 11 | 1 3 10 14 15 13 14 Power . | . . . . . . . Propulsion 1 | . . . 3 2 1 . Utility 1 | . . 2 2 3 3 1 Weapon 8 | . 2 6 9 9 9 12 Tool/Special . | . . . . . . . Unused Backups 30 | . . 6 2 . . 22 Power . | . . . . . . . Propulsion . | . . . . . . . Utility 3 | . . 1 1 . . 1 Weapon 26 | . . 4 1 . . 21 Tool/Special 1 | . . 1 . . . . Average Slot Usage (%) 89 | . 94 96 93 89 91 73 Engine 10 | . 14 10 11 11 11 8 Treads 4 | . 25 5 . . . 1 Leg 27 | . . 34 37 34 36 19 Device 8 | . 6 11 11 11 . 8 Storage 10 | . 14 11 11 11 11 9 Protection 3 | . 4 . . . 10 7 Energy Gun 2 | . . 6 2 . . . Energy Cannon 10 | . . 2 18 22 11 15 Ballistic Gun 6 | . 27 12 . . . . Launcher 1 | . . . . . 10 2 Peak Build Rating 30 | 6 9 19 19 17 16 30 Average Rating 15 | 5 7 15 16 16 13 22 On Entrance 11 | . 6 9 19 16 17 13 Naked Turns . | . . . . . . . Heaviest Build 57 | 13 15 33 34 34 36 57 Greatest Support 49 | 40 40 49 49 46 46 45 Greatest Overweight (x) 13 | 2 . 1 . . 1 13 Average Overweight (x) . | . . . . . . 1 Largest Inventory Capacity 15 | 8 8 15 15 15 15 15 Average Capacity 13 | 7 8 12 15 15 15 15 Most Carried 15 | 2 4 15 15 15 15 15 Average Carried 11 | 1 3 10 14 14 13 14 Final Capacity 15 | 8 8 15 15 15 15 15 Final Carried 15 | 2 4 15 15 15 15 15 Class Distribution -------------------- 81% | Mutant 18% | Scavenger-Mutant Dominant Class ---------------- Mutant | -10/Materials Mutant | -9/Materials Mutant | -9/Mines Mutant | -9/Exiles Scavenger-Mutant | -8/Mines Mutant | -8/Materials Resources | -11 -10 -9 -9 -9 -8 -8 ----------- Run | Yrd Mat Mat Min Exi Min Mat Matter Collected 1225 | 231 251 416 50 20 54 203 Remotely . | . . . . . . . Salvage Created 2301 | . 430 679 433 . 193 566 Parts 128 | . 19 52 23 . 8 26 Haulers Intercepted 3 | . . 3 . . . . Recyclers Shooed 2 | . . 1 . . . 1 Parts Field Recycled . | . . . . . . . Retrieved Matter . | . . . . . . . Parts Self-Destructed . | . . . . . . . Prevented . | . . . . . . . Kills | -11 -10 -9 -9 -9 -8 -8 ------- Run | Yrd Mat Mat Min Exi Min Mat Combat Hostiles Destroyed 61 | . 9 19 12 . 7 14 Guns 31 | . 9 18 4 . . . Cannons 17 | . . . 8 . 1 8 AOE 11 | . . . . . 5 6 Classes Destroyed 9 | . 2 3 . . 2 2 Builder 1 | . 1 . . . . . Tunneler 1 | . . . . . . 1 Hauler 3 | . . 3 . . . . Mechanic 1 | . . . . . . 1 Swarmer 15 | . . 10 3 . . 2 Grunt 39 | . 9 6 9 . 5 10 Brawler 1 | . . . . . 1 . Sentry 5 | . . 3 . . . 2 Hunter 1 | . . . . . 1 . Best Kill Streak 6 | . 5 5 4 . 6 5 Combat Bots Only 6 | . 5 5 4 . 6 5 Max Kills in Single Turn 2 | . 1 1 1 . 1 2 Gunslinging . | . . . . . . . Exploded 2 | . . . . . 1 2 Melee . | . . . . . . . Uniques/NPCs Destroyed . | . . . . . . . Combat | -11 -10 -9 -9 -9 -8 -8 -------- Run | Yrd Mat Mat Min Exi Min Mat Hostile Shots Fired 387 | . 91 114 37 . 32 113 Missed 104 | . 28 33 8 . 7 28 Hits 283 | . 63 81 29 . 25 85 Projectile 283 | . 63 81 29 . 25 85 Critical Strikes 5 | . 2 1 . . 1 1 Damage Taken 3537 | . 826 830 340 . 490 1051 Core 580 | . 157 170 73 . 30 150 Absorbed by Shields . | . . . . . . . Redirected to Shielding 52 | . 52 . . . . . Regen/Repaired (Parts) 32 | . . 32 . . . . Core Remaining (%) 56 | 100 37 . . . 31 . Volleys Fired 194 | . 38 72 33 . 14 37 Largest 2 | . 2 2 2 . 2 2 Hottest 136 | . 60 124 136 . 136 135 Shots Fired 365 | . 76 142 55 . 28 64 Gun 222 | . 76 133 13 . . . Cannon 120 | . . 9 40 . 17 54 Launcher 21 | . . . . . 11 10 Special 2 | . . . 2 . . . Kinetic 174 | . 69 105 . . . . Thermal 163 | . . 37 55 . 17 54 Explosive 21 | . . . . . 11 10 Electromagnetic 7 | . 7 . . . . . Robot Hit Streak 22 | . 9 17 22 . 7 14 Robot Miss Streak 7 | . 7 4 3 . 3 3 Penetration Max . | . . . . . . . Secondary Targets 2 | . 1 1 . . . . Max Gunslinging Chain 1 | . 1 1 . . . . Shots Hit Robots 221 | . 50 84 30 . 18 39 Core Hits 111 | . 21 28 15 . 18 29 Critical Kills 1 | . . . . . 1 . Critical Parts Destroyed 1 | . . 1 . . . . Critical Strikes 6 | . . 3 2 . 1 . Burn 4 | . . 2 2 . . . Meltdown 1 | . . . . . 1 . Destroy 1 | . . 1 . . . . Melee Attacks . | . . . . . . . Impact . | . . . . . . . Slashing . | . . . . . . . Piercing . | . . . . . . . Sneak Attacks . | . . . . . . . Combat Hostiles . | . . . . . . . Follow-up Attacks . | . . . . . . . Damage Inflicted 4727 | . 608 1167 603 . 728 1621 Guns 1725 | . 606 985 134 . . . Cannons 1647 | . . 182 469 . 205 791 Explosions 1353 | . . . . . 523 830 Melee . | . . . . . . . Ramming 2 | . 2 . . . . . Kinetic 1271 | . 525 746 . . . . Thermal 2020 | . . 421 603 . 205 791 Explosive 1353 | . . . . . 523 830 Electromagnetic 81 | . 81 . . . . . Impact . | . . . . . . . Slashing . | . . . . . . . Piercing . | . . . . . . . Highest Corruption . | . . . . . . . Average Corruption . | . . . . . . . Corruption Purged . | . . . . . . . Corruption Blocked . | . . . . . . . Overload Shots . | . . . . . . . Overflow Damage 75 | . . . 18 . . 57 Projectiles 52 | . . . 18 . . 34 Explosions 23 | . . . . . . 23 Melee . | . . . . . . . Knockbacks . | . . . . . . . Impact . | . . . . . . . Kinetic . | . . . . . . . Secondary . | . . . . . . . Self-Inflicted Damage 86 | . . . . . 86 . Shots 4 | . . . . . 4 . Rammed 1 | . 1 . . . . . Targets Rammed 1 | . 1 . . . . . Kicked . | . . . . . . . Crushed . | . . . . . . . Highest Temperature 435 | . 62 48 357 . 364 435 Average Temperature 113 | . 14 10 122 . 188 148 Received Heat Transfer 1509 | . 510 234 144 . 225 396 Effects 6 | . . . . . . 6 Shutdowns 1 | . . . . . . 1 Interference 3 | . . . . . . 3 Damage (minor) 2 | . . . . . . 2 Siege Activations . | . . . . . . . Martial Activations . | . . . . . . . Shielding Activations . | . . . . . . . Robots Disrupted . | . . . . . . . Combat Hostiles . | . . . . . . . Robots Corrupted . | . . . . . . . Combat Hostiles . | . . . . . . . Parts Fried . | . . . . . . . Impact Corruptions . | . . . . . . . Robots Melted 2 | . . 1 . . 1 . Combat Hostiles 2 | . . 1 . . 1 . Parts Melted 10 | . . 4 5 . . 1 Heat Transferred 3922 | . . 1073 1295 . 370 1184 Parts Sabotaged . | . . . . . . . Parts Stolen . | . . . . . . . Parts Stripped . | . . . . . . . Power Chain Reactions . | . . . . . . . Alert | -11 -10 -9 -9 -9 -8 -8 ------- Run | Yrd Mat Mat Min Exi Min Mat Maximum Alert Level 1 | . . 1 . . . 1 Low Security (%) 94 | 100 100 87 100 . 100 91 Level 1 5 | . . 12 . . . 8 Level 2 . | . . . . . . . Level 3 . | . . . . . . . Level 4 . | . . . . . . . Level 5 . | . . . . . . . High Security . | . . . . . . . Max Security . | . . . . . . . Peak Influence 245 | . 126 245 168 . 144 223 Initial 73 | . . 39 73 . . 16 Average 84 | . 47 131 92 . 84 50 Influence Increases 1976 | . 271 616 328 . 264 497 Destroy 0b10 Robot/C 1220 | . 180 380 240 . 140 280 Destroy 0b10 Robot/NC 30 | . 5 15 . . . 10 Destroy Leader 266 | . 50 76 50 . 30 60 Successful Hack 49 | . 5 23 6 . . 15 Select Force Hacks 60 | . 30 30 . . . . Disable Machine 105 | . . . 15 . 30 60 Destroy Structure 96 | . 1 2 2 . 64 27 Lose Combat Pursuer 150 | . . 90 15 . . 45 Influence Decreases 1781 | . 177 522 491 25 220 346 Entered New Map 223 | . . 55 115 25 . 28 Time Decay 1317 | . 152 407 356 . 170 232 Lost Part 241 | . 25 60 20 . 50 86 Squads Dispatched 7 | . 3 2 . . . 2 Investigation 3 | . 2 1 . . . . Extermination . | . . . . . . . Reinforcement 4 | . 1 1 . . . 2 Assault . | . . . . . . . Garrison . | . . . . . . . Intercept . | . . . . . . . Searches Triggered . | . . . . . . . Construction Impeded . | . . . . . . . Haulers Reinforced . | . . . . . . . Active Scanning Responses . | . . . . . . . Cargo Convoy Interrupts . | . . . . . . . Stealth | -11 -10 -9 -9 -9 -8 -8 --------- Run | Yrd Mat Mat Min Exi Min Mat Distress Signals 11 | . 1 5 . . . 5 Communications Jammed . | . . . . . . . Distress Signals . | . . . . . . . Times Spotted 94 | . 17 35 13 . 7 22 Peak Tracking Total 8 | . 7 5 3 . 4 8 Tactical Retreats 6 | . . 4 1 . . 1 Traps | -11 -10 -9 -9 -9 -8 -8 ------- Run | Yrd Mat Mat Min Exi Min Mat Traps Triggered 2 | . 1 1 . . . . Indirectly . | . . . . . . . Trap Hack Attempts . | . . . . . . . Triggered . | . . . . . . . Disarmed . | . . . . . . . Reprogrammed . | . . . . . . . Reused . | . . . . . . . Traps Extracted . | . . . . . . . Installed . | . . . . . . . Triggered . | . . . . . . . Machines | -11 -10 -9 -9 -9 -8 -8 ---------- Run | Yrd Mat Mat Min Exi Min Mat Machines Disabled 7 | . . . 1 . 2 4 Max in Single Turn 2 | . . . 1 . 2 1 Machines Repaired . | . . . . . . . Machines Dismantled . | . . . . . . . Machines Sabotaged . | . . . . . . . Overloaded Fab Kills . | . . . . . . . Hacking | -11 -10 -9 -9 -9 -8 -8 --------- Run | Yrd Mat Mat Min Exi Min Mat Machines Accessed 17 | . 4 8 2 . . 3 Terminals 13 | . 2 6 2 . . 3 Fabricators . | . . . . . . . Repair Stations 1 | . . 1 . . . . Recycling Units 3 | . 2 1 . . . . Scanalyzers . | . . . . . . . Garrison Access . | . . . . . . . Total Hacks 44 | . 9 19 7 . . 9 Successful 20 | . 4 10 3 . . 3 Failed 24 | . 5 9 4 . . 6 Catastrophic 1 | . . . . . . 1 Database Lockouts . | . . . . . . . Manual 36 | . 9 14 5 . . 8 Terminals 36 | . 5 15 7 . . 9 Fabricators . | . . . . . . . Repair Stations 3 | . . 3 . . . . Recycling Units 5 | . 4 1 . . . . Scanalyzers . | . . . . . . . Garrison Access . | . . . . . . . Terminal Hacks 7 | . 1 2 3 . . 1 Record 1 | . . 1 . . . . Robot Analysis 2 | . 1 . 1 . . . Branch Access Points 1 | . . . . . . 1 Terminal Index 1 | . . 1 . . . . Zone Layout 2 | . . . 2 . . . Fabricator Hacks . | . . . . . . . Repair Station Hacks 2 | . . 2 . . . . Scan Component 1 | . . 1 . . . . Repair 1 | . . 1 . . . . Recycling Unit Hacks . | . . . . . . . Scanalyzer . | . . . . . . . Garrison Access Hacks . | . . . . . . . Unauthorized Hacks 11 | . 3 6 . . . 2 Terminals 9 | . 2 5 . . . 2 Botnet 9 | . 2 5 . . . 2 Fabricators . | . . . . . . . Repair Stations . | . . . . . . . Recycling Units 2 | . 1 1 . . . . Tunnel 2 | . 1 1 . . . . Scanalyzers . | . . . . . . . Garrison Access . | . . . . . . . Data Cores Recovered . | . . . . . . . Used . | . . . . . . . Hacking Detections 13 | . 3 6 1 . . 3 Full Trace Events . | . . . . . . . Feedback Events . | . . . . . . . Feedback Blocked . | . . . . . . . Robot Schematics Acquired . | . . . . . . . Robots Built . | . . . . . . . Authchips . | . . . . . . . Time . | . . . . . . . Total Robot Build Rating . | . . . . . . . Part Schematics Acquired . | . . . . . . . Parts Built . | . . . . . . . Authchips . | . . . . . . . Time . | . . . . . . . Total Part Build Rating . | . . . . . . . Parts Repaired 1 | . . 1 . . . . Time 32 | . . 32 . . . . Parts Recycled . | . . . . . . . Recycled Matter . | . . . . . . . Retrieved Matter . | . . . . . . . Retrieved Components . | . . . . . . . Parts Scanalyzed . | . . . . . . . Part Schematics Acquired . | . . . . . . . Parts Damaged . | . . . . . . . Bothacking | -11 -10 -9 -9 -9 -8 -8 ------------ Run | Yrd Mat Mat Min Exi Min Mat Used RIF Installer . | . . . . . . . Robots Hacked . | . . . . . . . Non-combat . | . . . . . . . Combat . | . . . . . . . Robot Hacks Applied . | . . . . . . . Relay Couplers Released . | . . . . . . . Fabnet Peak Effective % . | . . . . . . . Robots Rewired . | . . . . . . . Allies Hacked . | . . . . . . . Hacks Repelled . | . . . . . . . Allies | -11 -10 -9 -9 -9 -8 -8 -------- Run | Yrd Mat Mat Min Exi Min Mat Total Allies . | . . . . . . . Largest Group . | . . . . . . . Highest-Rated Group . | . . . . . . . Highest-Rated Ally . | . . . . . . . Total Orders . | . . . . . . . Ally Attacks . | . . . . . . . Total Damage . | . . . . . . . Kills . | . . . . . . . Allies Corrupted . | . . . . . . . Allies Melted . | . . . . . . . Intel | -11 -10 -9 -9 -9 -8 -8 ------- Run | Yrd Mat Mat Min Exi Min Mat Active Infowar (turns) 1050 | . . . 803 241 6 . Terrain 1036 | . . . 789 241 6 . Structural 14 | . . . 14 . . . Robot Analysis Total 2 | . 1 . 1 . . . Derelict Logs Recovered 1 | . . . 1 . . . Drone Launches . | . . . . . . . Drone Recoveries . | . . . . . . . Exploration | -11 -10 -9 -9 -9 -8 -8 ------------- Run | Yrd Mat Mat Min Exi Min Mat Turns Passed 3906 | 85 463 1046 816 241 358 897 Spaces Moved 2167 | 50 206 611 584 200 188 328 Core 12 | 10 . . . . . 2 Treads 288 | 40 184 31 . . . 33 Legs 1789 | . . 524 584 200 188 293 Wheels 78 | . 22 56 . . . . Hover . | . . . . . . . Flight . | . . . . . . . Fastest Speed 50 | 50 100 115 120 120 120 120 Average Speed 142 | 150 153 121 120 120 157 219 Slowest Speed 700 | 160 160 190 120 120 190 700 Overloaded Moves . | . . . . . . . Propulsion Burnouts . | . . . . . . . Robots Hopped . | . . . . . . . Potential Cave-ins . | . . . . . . . Cave-ins Triggered . | . . . . . . . Exploration Rate (%) 49 | 4 46 55 96 58 49 39 Regions Visited 6 Branch Regions 3 Pre-discovered Areas 3 | . 1 1 1 . . . Known Exits Taken . | . . . . . . . Unknown Exits Taken 6 | 1 1 1 1 1 1 . Scrap Searched 3 | . . . 3 . . . Spaces Dug 6 | . . . 2 . . 4 Terrain Destroyed 124 | . . . 2 . 85 37 Melee . | . . . . . . . Projectile 14 | . . . 2 . 1 11 AOE 110 | . . . . . 84 26 Terrain Rammed . | . . . . . . . Walls Destroyed . | . . . . . . . Machines Disabled . | . . . . . . . Actions | -11 -10 -9 -9 -9 -8 -8 --------- Run | Yrd Mat Mat Min Exi Min Mat Total 2631 | 57 277 790 639 201 220 447 Wait 112 | . 19 55 11 . 8 19 Move 2161 | 49 205 610 583 199 187 328 Hop . | . . . . . . . Pick Up 59 | 2 5 23 2 1 3 23 Fast Attach 30 | 6 4 9 2 . 1 8 Attach 18 | . 3 3 . 1 3 8 Detach 1 | . . 1 . . . . Swap 17 | . 1 4 4 . 4 4 Drop 38 | . 1 13 4 . . 20 Fire 194 | . 38 72 33 . 14 37 Melee . | . . . . . . . Ram . | . . . . . . . Kick . | . . . . . . . Crush 1 | . 1 . . . . . Escape Stasis . | . . . . . . . Rewire . | . . . . . . . Trap . | . . . . . . . Miscellaneous . | . . . . . . . Route ------- -11/Scrapyard -10/Materials (discovered 3 exits: *Mat / [*Min x2]) -9/Materials (discovered 3 exits: *Mat / *Min / [*Sto]) -9/Mines (discovered 3 exits: *Mat x2 / [*Exi]) -9/Exiles -8/Mines -8/Materials (discovered 1 exit: [*Fac]) History --------- Turn | Location | Event 14 | -11/Scrapyard | Discovered new exit (range 16) 86 | -11/Scrapyard | Entered Materials 131 | -10/Materials | Discovered new exit (range 9) 165 | -10/Materials | Discovered new exit (range 6) 322 | -10/Materials | Core integrity fell below 50% 336 | -10/Materials | Build established: Mutant 344 | -10/Materials | Lost 5 parts (1p1n1u2w) 500 | -10/Materials | Discovered new exit (range 4) 549 | -10/Materials | Entered another Materials area 549 | -9/Materials | Evolved 2 slots: Propulsion x2 578 | -9/Materials | Discovered new exit (range 7) 1244 | -9/Materials | Discovered new exit (range 7) 1299 | -9/Materials | Repaired Rocket Launcher 1393 | -9/Materials | Discovered new exit (range 15) 1595 | -9/Materials | Entered Mines 1707 | -9/Mines | Core integrity fell below 50% 1764 | -9/Mines | Discovered new exit (range 4) 1959 | -9/Mines | Learned location of Storage (-9) 2184 | -9/Mines | Discovered new exit (range 15) 2223 | -9/Mines | Deemed a non-threat by the Exiles lab entrance 2223 | -9/Mines | Discovered new exit (range 5) 2411 | -9/Mines | Entered Exiles 2441 | -9/Exiles | Met 8R-AWN 2462 | -9/Exiles | Met EX-HEX 2493 | -9/Exiles | Met EX-BIN 2506 | -9/Exiles | Met EX-DEC 2638 | -9/Exiles | Discovered new exit (range 14) 2652 | -9/Exiles | Entered Mines 2725 | -8/Mines | Lost 4 parts (3n1u) 2951 | -8/Mines | Build established: Scavenger-Mutant 2994 | -8/Mines | Discovered new exit (range 8) 3010 | -8/Mines | Entered Materials 3010 | -8/Materials | Evolved 2 slots: Utility x2 3180 | -8/Materials | Lost 4 parts (1p3n) 3295 | -8/Materials | Lost 6 parts (3n3u) 3542 | -8/Materials | Build established: Mutant 3827 | -8/Materials | Discovered new exit (range 16) 3907 | -8/Materials | Self-destructed Last Messages --------------- 03804_ Acquired 2 matter. 03804_ U-05 Engineer lays Concrete. 03805_ K-01 Serf collects debris. 03805_ U-05 Engineer lays Concrete. 03807_ K-01 Serf collects debris. 03811_ U-05 Engineer lays Concrete. 03811_ U-05 Engineer builds a Door. 03812_ U-05 Engineer lays Concrete. 03827_ EXIT=FOUND 03837_ U-05 Engineer lays Concrete. 03858_ Acquired Arm. Treads. 03907_ Connecting with Terminal... >>Trojan(Botnet) Trojan loaded successfully. Testing... Terminal linked with 1 system. Awaiting botnet instructions. 03907_ Connecting with Terminal... >>Access(Branch) No branch access points found. Map ----- +----------------------------------------------------+ | | | | | | | | | | | | | | | | | | | | | | | | | | | ?????????????????????????????????????????????????? | | ?????????????????????????????????????????????????? | | ?????????????????????????????????????????????????? | | ?????????????????????????????????????????????????? | | ?????????????????????????????????????????????????? | | ?????????????????????????????????????????????????? | | ????????????????????????????############?????????? | | ????????????????????????????# # #?????????? | | ????????????????????????????# < # #?????????? | | ????????????????????????????# ^# " " #?????????? | | ?????????????????????######## + "G" #?????????? | | ?????????????????????# ! # " #?????????? | | ?????????????????????# @ ! # #?????????? | | ?????????????????????# T ! ########?????????? | | ?????????????????????# ######???????????? | | ?????????????????????# ]!# #???????????? | | ?????????????????????# !!# #???????????? | | ?????????????????????# # #???????????? | | ?????????????????????# # #???????????? | | ?????????????????????# """ # #???????????? | | ?????????????????????# """ # #########???? | | ?????????????????????# """ # ## ]!![[#???? | | ?????????????????????# """ # ## !![[#???? | | ?????????????????????# # ## #???? | | ???????????????????### [ # # ##??? | | ?????????????? #??? | | ?????????????? #??? | | ??????????????? % % # # | | ???????????????# ###### ! % | | ??????????????????????# | | ??????????????????????# # " | | ??????????????????????# """ " + " | | ??????????????????????# """"" """"" # | | ??????????????????????# """"" """"" ^ | | ??????????????????????# """"" """"" [[[ #### | | ??????????????????????# """ """ | | ??????????????????????# [[ | +----------------------------------------------------+ Best States ------------- Heat Dissipation 59 Energy Generation 14 Energy Capacity 275 Matter Stores 300 Matter Capacity 300 Sight Range 16 Terrain Scan Range 14 Terrain Scan Density 10 Armor Coverage 600 Weapon Shielding 33 Evasion (%) 55 Recoil Reduction 2 Item Schematics ----------------- None Robot Schematics ------------------ None Fabricated ------------ Nothing Repaired ---------- Rocket Launcher | 54% | -9/Materials Alien Tech Used ----------------- None Achievements -------------- None Challenges ------------ None Game ------ Seed MiningGaussDiverter Manual? 0 Play Time 00:47:13 Cumulative 188.0 hours Start 2025.05.08 @ 22:08:29 End 2025.05.10 @ 12:44:04 Sessions 3 Manual Loads 0 Difficulty Rogue Special Mode None Game No. 183 Rogue 183 Adventurer 0 Explorer 0 Win Type - Total 1 Types 1/0/0/0/0/0/0/0/0/0 Lore% 65 Gallery% 54 Achievement% 48 Wizard Run 0 Options --------- Layout 1 ASCII 0 Keyboard 0 Movement Mouse Keybinds 0 Fullscreen 1 Font 24/Smallcaps Map View 50x35 Zoom Use 0% Tactical HUD 1 Map Filters NONE Filters NONE Steam 1 RUN: 349ad9dd-1096-4dc3-8b21-01dab051ec81